fUSD/lending_fUSD_20250906
["ID","MTS","AMOUNT","RATE_DAILY","PERIOD"]
[383946999,1757189466918,-480.885614,0.00033,7]
[383947000,1757189466928,-151.0,0.00033,7]
[383947001,1757189466937,-480.885614,0.00033,7]
[383947002,1757189466947,-480.885614,0.00033,7]
[383947003,1757189466956,-151.0,0.00033,7]
[383947004,1757189466966,-151.0,0.00033,7]
[383947005,1757189466975,-160.211071,0.00033,7]
[383947006,1757189466985,-3011.38049103,0.00033,3]
[383947007,1757189466994,-3011.38049103,0.00033,7]
[383947008,1757189467004,-514.85095374,0.00033,30]
[383947009,1757189467014,-514.85095374,0.00033,3]
[383947010,1757189467023,-855.904545,0.00033,7]
[383947011,1757189467032,-151.0,0.00033,7]
[383947012,1757189467042,-855.904545,0.00033,7]
[383947013,1757189467052,-399.64270258,0.00033022,2]
[383947014,1757189467062,-500.0,0.00033022,2]
[383947015,1757189467071,-500.0,0.00033022,2]
[383947016,1757189467080,-500.0,0.00033022,2]
[383947017,1757189467090,-514.3751934,0.00033022,2]
[383947018,1757189467100,-500.0,0.00033022,2]
[383947019,1757189467109,-500.0,0.00033022,3]
[383947020,1757189467119,-151.0,0.00033065,2]
[383947021,1757189467129,-151.0,0.00033065,2]
[383947022,1757189467139,-151.0,0.00033065,2]
[383947023,1757189467151,-1425.0,0.00033067,2]
[383947024,1757189467161,-20912.62215767,0.00033087,2]
[383947025,1757189467171,-432.0,0.00033092,2]
[383947026,1757189467180,-500.0,0.00033105,7]
[383947027,1757189467190,-1425.0,0.00033194,2]
[383947028,1757189467199,-315.98,0.000332,30]
[383947029,1757189467209,-1039.8,0.000332,14]
[383947030,1757189467219,-500.0,0.00033219,7]
[383947031,1757189467228,-500.0,0.00033296,2]
[383947032,1757189467238,-500.0,0.00033296,2]
[383947033,1757189467247,-500.0,0.00033296,2]
[383947034,1757189467257,-500.0,0.00033296,2]
[383947035,1757189467267,-500.0,0.00033296,3]
[383947036,1757189467277,-5888.0,0.00033312,2]
[383947037,1757189467286,-500.0,0.00033333,7]
[383947038,1757189467296,-160.0,0.00033338,2]
[383947039,1757189467306,-277.35679052,0.00033338,2]
[383947040,1757189467315,-3111.0,0.00033338,2]
[383947041,1757189467326,-334.5472959,0.00033338,2]
[383947042,1757189467335,-229.255296,0.00033385,7]
[383947043,1757189467345,-151.0,0.00033385,7]
[383947044,1757189467355,-229.255296,0.00033385,7]
[383947045,1757189467365,-154.349297,0.00033385,7]
[383947046,1757189467374,-229.255296,0.00033385,7]
[383947047,1757189467384,-154.349297,0.00033385,7]
[383947048,1757189467394,-229.255287,0.00033385,7]
[383947049,1757189467404,-154.349297,0.00033385,7]
[383947050,1757189467414,-154.349305,0.00033385,7]
[383947051,1757189467426,-802.0,0.00033385,2]
[383947052,1757189467446,-802.0,0.00033385,2]
[383947053,1757189467458,-972.84,0.00033385,2]
[383947054,1757189467467,-1425.0,0.00033394,2]
[383947055,1757189467477,-3873.66848893,0.00033412,2]
[383947056,1757189467486,-466.22821208,0.00033442,2]
[383947057,1757189467496,-500.0,0.00033447,7]
[383947058,1757189467505,-1000.0,0.00033494,2]
[383947059,1757189467515,-198.78,0.00033498,120]
[383947060,1757189467525,-3011.38049103,0.0003351,2]
[383947061,1757189467535,-250.0,0.00033521,5]
[383947062,1757189467545,-166.66,0.00033543,2]
[383947063,1757189467555,-500.0,0.00033562,7]
[383947064,1757189467565,-500.0,0.0003357,2]
[383947065,1757189467574,-500.0,0.0003357,2]
[383947066,1757189467584,-500.0,0.0003357,2]
[383947067,1757189467594,-500.0,0.0003357,2]
[383947068,1757189467604,-500.0,0.0003357,2]
[383947069,1757189467613,-500.0,0.0003357,3]
[383947070,1757189467623,-9733.02,0.000336,14]
[383947071,1757189467633,-2203.500243,0.000336,7]
[383947072,1757189467642,-1773.511613,0.000336,7]
[383947073,1757189467652,-1773.511613,0.000336,7]
[383947074,1757189467662,-2203.500243,0.000336,7]
[383947075,1757189467672,-1773.511613,0.000336,7]
[383947076,1757189467681,-1325.307472,0.000336,7]
[383947077,1757189467691,-2203.500243,0.000336,7]
[383947078,1757189467701,-1773.51162,0.000336,7]
[383947079,1757189467710,-2203.500252,0.000336,7]
[383947080,1757189467720,-1325.307472,0.000336,7]
[383947081,1757189467730,-1325.307472,0.000336,7]
[383947082,1757189467739,-1325.307472,0.000336,7]
[383947083,1757189467749,-180.164776,0.000336,7]
[383947084,1757189467759,-151.0,0.000336,7]
[383947085,1757189467768,-160.321259,0.000336,7]
[383947086,1757189467778,-160.321259,0.000336,7]
[383947087,1757189467787,-160.321259,0.000336,7]
[383947088,1757189467797,-160.321253,0.000336,7]
[383947089,1757189467806,-151.0,0.00033613,2]
[383947090,1757189467815,-215.63866546,0.00033613,2]
[383947091,1757189467825,-1425.0,0.00033614,2]
[383947092,1757189467834,-153.0,0.00033617,7]
[383947093,1757189467844,-153.0,0.00033617,7]
[383947094,1757189467854,-546.0,0.00033617,7]
[383947095,1757189467863,-546.0,0.00033617,7]
[383947096,1757189467873,-546.0,0.00033617,7]
[383947097,1757189467883,-546.0,0.00033617,7]
[383947098,1757189467893,-546.0,0.00033617,7]
[383947099,1757189467903,-546.0,0.00033617,7]
[383947100,1757189467913,-546.0,0.00033617,7]
[383947101,1757189467922,-546.0,0.00033617,7]
[383947102,1757189467932,-546.0,0.00033617,7]
[383947103,1757189467941,-219.62646551,0.00033617,7]
[383947104,1757189467952,-150.0,0.00033622,2]
[383947105,1757189467961,-198.78,0.00033635,120]
[383947106,1757189467971,-619.61,0.00033649,30]
[383947107,1757189467980,-500.0,0.00033676,7]
[383947108,1757189467990,-2200.96312224,0.00033682,21]
[383947109,1757189468004,-259.27,0.00033698,7]
[383947110,1757189468014,-198.78,0.00033772,120]
[383947111,1757189468025,-151.0,0.00033782,7]
[383947112,1757189468036,-151.0,0.00033782,7]
[383947113,1757189468046,-151.0,0.00033782,7]
[383947114,1757189468056,-151.0,0.00033782,7]
[383947115,1757189468067,-151.0,0.00033782,7]
[383947116,1757189468077,-151.0,0.00033782,7]
[383947117,1757189468087,-151.0,0.00033782,7]
[383947118,1757189468097,-151.0,0.00033782,7]
[383947119,1757189468107,-238.210585,0.00033782,7]
[383947120,1757189468117,-151.0,0.00033782,7]
[383947121,1757189468127,-819.45969,0.00033782,7]
[383947122,1757189468138,-151.0,0.00033782,7]
[383947123,1757189468148,-819.45969,0.00033782,7]
[383947124,1757189468158,-151.0,0.00033782,7]
[383947125,1757189468168,-819.45969,0.00033782,7]
[383947126,1757189468178,-819.4597,0.00033782,7]
[383947127,1757189468187,-151.0,0.00033782,7]
[383947128,1757189468197,-500.0,0.0003379,7]
[383947129,1757189468206,-203.592692,0.000338,8]
[383947130,1757189468216,-150.0,0.0003381,2]
[383947131,1757189468225,-471.79,0.00033827,30]
[383947132,1757189468235,-216.24,0.00033827,30]
[383947133,1757189468245,-577.1862791,0.00033844,2]
[383947134,1757189468255,-530.97384258,0.00033844,2]
[383947135,1757189468264,-500.0,0.00033844,2]
[383947136,1757189468274,-500.0,0.00033844,2]
[383947137,1757189468284,-417.9351243,0.00033844,3]
[383947138,1757189468294,-150.0,0.0003387,2]
[383947139,1757189468303,-151.0,0.0003389,7]
[383947140,1757189468312,-151.0,0.0003389,7]
[383947141,1757189468322,-151.0,0.0003389,7]
[383947142,1757189468331,-187.469581,0.0003389,7]
[383947143,1757189468341,-187.469581,0.0003389,7]
[383947144,1757189468350,-187.469581,0.0003389,7]
[383947145,1757189468360,-187.469581,0.0003389,7]
[383947146,1757189468370,-151.0,0.0003389,7]
[383947147,1757189468380,-151.0,0.0003389,7]
[383947148,1757189468391,-4000.0,0.00033897,4]
[383947149,1757189468401,-500.0,0.00033904,7]
[383947150,1757189468411,-198.78,0.00033909,120]
[383947151,1757189468421,-1425.0,0.00033912,2]
[383947152,1757189468435,-150.0,0.00033921,2]
[383947153,1757189468445,-432.0,0.00033923,2]
[383947154,1757189468455,-1000.0,0.00033948,2]
[383947155,1757189468464,-1000.0,0.00033962,2]
[383947156,1757189468476,-1425.0,0.00033963,2]
[383947157,1757189468485,-13291.67777036,0.00033974,2]
[383947158,1757189468495,-35000.0,0.00034,2]
[383947159,1757189468506,-1000.0,0.00034004,2]
[383947160,1757189468516,-500.0,0.00034018,7]
[383947161,1757189468526,-160.61027342,0.0003403,2]
[383947162,1757189468536,-3054.0,0.00034039,2]
[383947163,1757189468546,-1000.0,0.00034041,2]
[383947164,1757189468556,-150.0,0.00034041,2]
[383947165,1757189468566,-198.78,0.00034046,120]
[383947166,1757189468576,-350.0,0.00034068,5]
[383947167,1757189468586,-20912.62215767,0.00034096,2]
[383947168,1757189468596,-500.0,0.00034118,2]
[383947169,1757189468606,-500.0,0.00034118,2]
[383947170,1757189468616,-500.0,0.00034118,2]
[383947171,1757189468626,-155.41299214,0.00034123,2]
[383947172,1757189468636,-500.0,0.00034132,7]
[383947173,1757189468646,-432.0,0.00034143,2]
[383947174,1757189468655,-3542.0,0.00034157,2]
[383947175,1757189468665,-151.0,0.00034161,2]
[383947176,1757189468675,-164.69,0.00034168,2]
[383947177,1757189468685,-198.78,0.00034183,120]
[383947178,1757189468694,-151.0,0.00034227,7]
[383947179,1757189468704,-151.0,0.00034227,7]
[383947180,1757189468714,-968.42913503,0.00034237,2]
[383947181,1757189468724,-500.0,0.00034247,7]
[383947182,1757189468733,-150.0,0.00034256,2]
[383947183,1757189468744,-151.0,0.00034275,7]
[383947184,1757189468754,-154.978487,0.00034275,7]
[383947185,1757189468764,-151.0,0.00034275,7]
[383947186,1757189468773,-151.0,0.00034275,7]
[383947187,1757189468783,-284.3946,0.00034275,7]
[383947188,1757189468793,-3542.0,0.00034275,7]
[383947189,1757189468802,-432.0,0.0003432,7]
[383947190,1757189468812,-198.78,0.0003432,120]
[383947191,1757189468822,-306.57,0.00034344,2]
[383947192,1757189468832,-1779.26,0.00034344,2]
[383947193,1757189468843,-541.44,0.00034344,2]
[383947194,1757189468854,-174.35,0.00034344,2]
[383947195,1757189468865,-174.35,0.00034344,2]
[383947196,1757189468875,-1089.73,0.00034344,2]
[383947197,1757189468884,-151.0,0.00034348,7]
[383947198,1757189468894,-151.0,0.00034348,7]
[383947199,1757189468904,-151.0,0.00034348,7]
[383947200,1757189468914,-480.885614,0.00034348,7]
[383947201,1757189468926,-151.0,0.00034348,7]
[383947202,1757189468937,-480.885614,0.00034348,7]
[383947203,1757189468947,-151.0,0.00034348,7]
[383947204,1757189468958,-480.885614,0.00034348,7]
[383947205,1757189468968,-480.885614,0.00034348,7]
[383947206,1757189468977,-151.0,0.00034348,7]
[383947207,1757189468987,-151.0,0.00034348,7]
[383947208,1757189468997,-500.0,0.00034361,7]
[383947209,1757189469007,-150.0,0.00034364,2]
[383947210,1757189469017,-259.27,0.00034383,9]
[383947211,1757189469027,-500.0,0.00034392,2]
[383947212,1757189469037,-500.0,0.00034392,2]
[383947213,1757189469047,-500.0,0.00034392,2]
[383947214,1757189469057,-1000.0,0.00034393,2]
[383947215,1757189469066,-151.0,0.00034422,7]
[383947216,1757189469076,-151.0,0.00034422,7]
[383947217,1757189469086,-253.0,0.00034422,2]
[383947218,1757189469095,-150.0,0.00034422,2]
[383947219,1757189469105,-200.0,0.00034422,2]
[383947220,1757189469115,-205.0,0.00034422,2]
[383947221,1757189469124,-196.204,0.00034422,2]
[383947222,1757189469134,-200.313,0.00034422,2]
[383947223,1757189469144,-180.856,0.00034422,2]
[383947224,1757189469153,-151.375,0.00034422,2]
[383947225,1757189469163,-150.151,0.00034422,2]
[383947226,1757189469173,-178.357,0.00034422,2]
[383947227,1757189469182,-245.888,0.00034422,2]
[383947228,1757189469192,-186.857,0.00034422,2]
[383947229,1757189469202,-205.621,0.00034422,2]
[383947230,1757189469212,-160.384,0.00034422,2]
[383947231,1757189469222,-255.912,0.00034422,2]
[383947232,1757189469232,-207.61,0.00034422,2]
[383947233,1757189469242,-211.023,0.00034422,2]
[383947234,1757189469252,-155.0,0.00034422,2]
[383947235,1757189469262,-2075.283,0.00034422,2]
[383947236,1757189469272,-1264.766,0.00034422,2]
[383947237,1757189469282,-949.18,0.00034422,2]
[383947238,1757189469292,-3467.526,0.00034422,2]
[383947239,1757189469302,-1326.041,0.00034422,2]
[383947240,1757189469541,-198.78,0.00034456,120]
[383947241,1757189469551,-500.0,0.00034475,7]
[383947242,1757189469561,-1425.0,0.00034495,2]
[383947243,1757189469570,-1000.0,0.00034496,2]
[383947244,1757189469580,-315.98,0.000345,30]
[383947245,1757189469591,-1039.8,0.000345,14]
[383947246,1757189469602,-1006.0,0.000345,7]
[383947247,1757189469612,-4000.0,0.00034508,4]
[383947248,1757189469622,-151.0,0.00034523,7]
[383947249,1757189469632,-285.401851,0.00034523,7]
[383947250,1757189469641,-285.401851,0.00034523,7]
[383947251,1757189469650,-151.0,0.00034523,7]
[383947252,1757189469660,-285.401851,0.00034523,7]
[383947253,1757189469669,-151.0,0.00034523,7]
[383947254,1757189469679,-285.401851,0.00034523,7]
[383947255,1757189469688,-151.0,0.00034523,7]
[383947256,1757189469698,-151.0,0.00034523,7]
[383947257,1757189469707,-157.412057,0.00034523,7]
[383947258,1757189469717,-151.0,0.00034523,7]
[383947259,1757189469727,-151.0,0.00034523,7]
[383947260,1757189469736,-151.0,0.00034523,7]
[383947261,1757189469746,-151.0,0.00034523,7]
[383947262,1757189469755,-151.0,0.00034523,7]
[383947263,1757189469765,-151.0,0.00034523,7]
[383947264,1757189469774,-1425.0,0.00034553,2]
[383947265,1757189469784,-150.0,0.0003456,2]
[383947266,1757189469794,-150.0,0.00034581,2]
[383947267,1757189469804,-166.66,0.00034582,2]
[383947268,1757189469813,-500.0,0.00034589,7]
[383947269,1757189469823,-198.78,0.00034593,120]
[383947270,1757189469832,-316.59773848,0.000346,2]
[383947271,1757189469842,-316.59773848,0.000346,2]
[383947272,1757189469852,-316.59773848,0.000346,2]
[383947273,1757189469862,-316.59773848,0.000346,2]
[383947274,1757189469872,-316.59773848,0.000346,2]
[383947275,1757189469882,-316.59773848,0.000346,2]
[383947276,1757189469892,-316.59773848,0.000346,2]
[383947277,1757189469902,-316.59773848,0.000346,2]
[383947278,1757189469911,-316.59773848,0.000346,2]
[383947279,1757189469920,-316.59773848,0.000346,2]
[383947280,1757189469930,-316.59773848,0.000346,2]
[383947281,1757189469939,-316.59773848,0.000346,2]
[383947282,1757189469948,-316.59773848,0.000346,2]
[383947283,1757189469957,-316.59773848,0.000346,2]
[383947284,1757189469967,-316.59773848,0.000346,2]
[383947285,1757189469977,-316.59773848,0.000346,2]
[383947286,1757189469987,-316.59773848,0.000346,2]
[383947287,1757189469997,-316.59773848,0.000346,2]
[383947288,1757189470006,-450.0,0.00034616,5]
[383947289,1757189470015,-1425.0,0.00034622,2]
[383947290,1757189470025,-150.0,0.00034639,2]
[383947291,1757189470035,-151.0,0.00034646,7]
[383947292,1757189470045,-23300.55230866,0.00034649,2]
[383947293,1757189470054,-151.0,0.0003465,7]
[383947294,1757189470064,-153.743586,0.0003465,7]
[383947295,1757189470074,-151.0,0.0003465,7]
[383947296,1757189470083,-285.401851,0.0003465,7]
[383947297,1757189470093,-285.401851,0.0003465,7]
[383947298,1757189470102,-151.0,0.0003465,7]
[383947299,1757189470111,-285.401851,0.0003465,7]
[383947300,1757189470121,-151.0,0.0003465,7]
[383947301,1757189470131,-285.401856,0.0003465,7]
[383947302,1757189470140,-151.0,0.0003465,7]
[383947303,1757189470150,-151.0,0.0003465,7]
[383947304,1757189470159,-151.0,0.0003465,7]
[383947305,1757189470169,-151.0,0.0003465,7]
[383947306,1757189470178,-151.0,0.0003465,7]
[383947307,1757189470187,-151.0,0.0003465,7]
[383947308,1757189470197,-151.0,0.0003465,7]
[383947309,1757189470206,-151.0,0.0003465,7]
[383947310,1757189470217,-187.469581,0.0003465,7]
[383947311,1757189470226,-151.0,0.0003465,7]
[383947312,1757189470236,-187.469581,0.0003465,7]
[383947313,1757189470245,-151.0,0.0003465,7]
[383947314,1757189470254,-187.469581,0.0003465,7]
[383947315,1757189470264,-294.506924,0.0003465,7]
[383947316,1757189470274,-187.469573,0.0003465,7]
[383947317,1757189470283,-151.0,0.0003465,7]
[383947318,1757189470293,-151.0,0.0003465,7]
[383947319,1757189470302,-150.0,0.0003466,2]
[383947320,1757189470311,-547.60445245,0.00034666,2]
[383947321,1757189470321,-500.0,0.00034666,2]
[383947322,1757189470330,-301.60424676,0.00034666,2]
[383947323,1757189470339,-1000.0,0.0003467,2]
[383947324,1757189470349,-554.77985018,0.00034683,2]
[383947325,1757189470358,-432.0,0.00034696,2]
[383947326,1757189470368,-9733.02,0.000347,14]
[383947327,1757189470377,-150.0,0.00034702,2]
[383947328,1757189470387,-500.0,0.00034703,7]
[383947329,1757189470396,-471.79,0.00034704,30]
[383947330,1757189470406,-216.24,0.00034704,30]
[383947331,1757189470415,-160.0,0.00034707,2]
[383947332,1757189470425,-287.61899177,0.00034707,2]
[383947333,1757189470436,-3226.107,0.00034707,2]
[383947334,1757189470446,-346.92554585,0.00034707,2]
[383947335,1757189470455,-721.12765535,0.00034708,2]
[383947336,1757189470465,-209.40437684,0.00034708,2]
[383947337,1757189470474,-151.0,0.00034709,2]
[383947338,1757189470483,-1425.0,0.0003471,2]
[383947339,1757189470493,-200.0,0.00034711,10]
[383947340,1757189470502,-200.0,0.00034712,10]
[383947341,1757189470511,-200.0,0.00034712,10]
[383947342,1757189470521,-1425.0,0.00034718,2]
[383947343,1757189470531,-198.78,0.0003473,120]
[383947344,1757189470540,-3873.66848893,0.00034738,2]
[383947345,1757189470550,-432.0,0.00034743,2]
[383947346,1757189470560,-5000.0,0.00034762,5]
[383947347,1757189470570,-5000.0,0.00034764,5]
[383947348,1757189470580,-5000.0,0.00034766,5]
[383947349,1757189470590,-500.0,0.00034817,7]
[383947350,1757189470600,-150.0,0.00034842,2]
[383947351,1757189470610,-198.78,0.00034867,120]
[383947352,1757189470619,-150.0,0.00034879,2]
[383947353,1757189470629,-1425.0,0.00034888,2]
[383947354,1757189470638,-762.31713604,0.000349,4]
[383947355,1757189470647,-2000.0,0.000349,2]
[383947356,1757189470657,-300.0,0.000349,12]
[383947357,1757189470666,-150.0,0.00034909,2]
[383947358,1757189470676,-500.0,0.00034932,7]
[383947359,1757189470685,-432.0,0.00034936,2]
[383947360,1757189470695,-500.0,0.0003494,2]
[383947361,1757189470704,-500.0,0.0003494,2]
[383947362,1757189470713,-514.58154327,0.00034957,5]
[383947363,1757189470723,-1425.0,0.00034969,2]
[383947364,1757189470732,-705.68084674,0.0003497,2]
[383947365,1757189470741,-500.0,0.0003497,2]
[383947366,1757189470751,-1154.01311976,0.0003497,2]
[383947367,1757189470760,-1224.0,0.00034971,7]
[383947368,1757189470770,-153.94285468,0.00034971,7]
[383947369,1757189470779,-546.0,0.00034971,7]
[383947370,1757189470791,-153.0,0.00034971,7]
[383947371,1757189470802,-546.0,0.00034971,7]
[383947372,1757189470811,-546.0,0.00034971,7]
[383947373,1757189470820,-1224.0,0.00034971,7]
[383947374,1757189470830,-290.43323799,0.00034971,7]
[383947375,1757189470839,-546.0,0.00034971,7]
[383947376,1757189470848,-1224.0,0.00034971,7]
[383947377,1757189470858,-546.0,0.00034971,7]
[383947378,1757189470867,-1224.0,0.00034971,7]
[383947379,1757189470876,-546.0,0.00034971,7]
[383947380,1757189470886,-1224.0,0.00034971,7]
[383947381,1757189470898,-546.0,0.00034971,7]
[383947382,1757189470907,-1224.0,0.00034971,7]
[383947383,1757189470916,-1224.0,0.00034971,7]
[383947384,1757189470926,-546.0,0.00034971,7]
[383947385,1757189470935,-546.0,0.00034971,7]
[383947386,1757189470945,-546.0,0.00034971,7]
[383947387,1757189470954,-546.0,0.00034971,7]
[383947388,1757189470963,-546.0,0.00034971,7]
[383947389,1757189470972,-546.0,0.00034971,7]
[383947390,1757189470981,-166.0,0.00034971,7]
[383947391,1757189470991,-206.58494233,0.00034971,7]
[383947392,1757189471001,-154.0,0.00034971,7]
[383947393,1757189471010,-154.0,0.00034971,7]
[383947394,1757189471019,-546.0,0.00034971,7]
[383947395,1757189471029,-245.35459849,0.00034971,7]
[383947396,1757189471039,-546.0,0.00034971,7]
[383947397,1757189471048,-546.0,0.00034971,7]
[383947398,1757189471057,-546.0,0.00034971,7]
[383947399,1757189471066,-155.0,0.00034971,7]
[383947400,1757189471075,-546.0,0.00034971,7]
[383947401,1757189471085,-546.0,0.00034971,7]
[383947402,1757189471095,-546.0,0.00034971,7]
[383947403,1757189471105,-546.0,0.00034971,7]
[383947404,1757189471114,-546.0,0.00034971,7]
[383947405,1757189471123,-546.0,0.00034971,7]
[383947406,1757189471132,-546.0,0.00034971,7]
[383947407,1757189471141,-546.0,0.00034971,7]
[383947408,1757189471150,-546.0,0.00034971,7]
[383947409,1757189471159,-546.0,0.00034971,7]
[383947410,1757189471168,-546.0,0.00034971,7]
[383947411,1757189471177,-546.0,0.00034971,7]
[383947412,1757189471187,-664.27730878,0.00034971,7]
[383947413,1757189471196,-546.0,0.00034971,7]
[383947414,1757189471205,-546.0,0.00034971,7]
[383947415,1757189471214,-546.0,0.00034971,7]
[383947416,1757189471223,-546.0,0.00034971,7]
[383947417,1757189471233,-546.0,0.00034971,7]
[383947418,1757189471242,-155.0,0.00034971,7]
[383947419,1757189471252,-546.0,0.00034971,7]
[383947420,1757189471261,-200.80141821,0.00034971,7]
[383947421,1757189471270,-546.0,0.00034971,7]
[383947422,1757189471279,-546.0,0.00034971,7]
[383947423,1757189471288,-153.0,0.00034971,7]
[383947424,1757189471298,-158.09129496,0.00034971,7]
[383947425,1757189471307,-546.0,0.00034971,7]
[383947426,1757189471317,-546.0,0.00034971,7]
[383947427,1757189471328,-546.0,0.00034971,7]
[383947428,1757189471337,-546.0,0.00034971,7]
[383947429,1757189471347,-546.0,0.00034971,7]
[383947430,1757189471357,-546.0,0.00034971,7]
[383947431,1757189471367,-546.0,0.00034971,7]
[383947432,1757189471377,-546.0,0.00034971,7]
[383947433,1757189471387,-546.0,0.00034971,7]
[383947434,1757189471396,-546.0,0.00034971,7]
[383947435,1757189471407,-1104.8464722,0.00034972,2]
[383947436,1757189471417,-6271.2313205,0.00034972,2]
[383947437,1757189471430,-5667.0,0.00034986,5]
[383947438,1757189471440,-5667.0,0.00034988,5]
[383947439,1757189471449,-200.0,0.00034992,2]
[383947440,1757189471459,-200.0,0.00034992,2]
[383947441,1757189471469,-285.29773598,0.00034992,14]
[383947442,1757189471478,-151.0,0.00034992,14]
[383947443,1757189471492,-1000.0,0.00035,120]
[383947444,1757189471503,-10074.65439338,0.00035,120]
[383947445,1757189471512,-8754.99262946,0.00035,2]
[383947446,1757189471523,-50319.93429139,0.00035,30]
[383947447,1757189471532,-21419.92868844,0.00035,2]
[383947448,1757189471543,-3011.38049103,0.00035,120]
[383947449,1757189471552,-3011.38049103,0.00035,30]
[383947450,1757189471562,-514.85095374,0.00035,120]
[383947451,1757189471571,-514.85095374,0.00035,30]
[383947452,1757189471581,-1000.0,0.00035,7]
[383947453,1757189471591,-198.78,0.00035004,120]
[383947454,1757189471600,-3837.0,0.00035021,2]
[383947455,1757189471611,-500.0,0.00035046,7]
[383947456,1757189471620,-259.27,0.00035068,11]
[383947457,1757189471630,-500.0,0.0003507,2]
[383947458,1757189471640,-1000.0,0.0003507,2]
[383947459,1757189471650,-1230.01192167,0.00035086,2]
[383947460,1757189471659,-1002.9769,0.00035099,2]
[383947461,1757189471668,-9698.57871394,0.00035105,2]
[383947462,1757189471678,-6772.97876169,0.00035105,2]
[383947463,1757189471688,-1300.76728048,0.00035105,2]
[383947464,1757189471699,-386.63002696,0.00035105,2]
[383947465,1757189471709,-20912.62215767,0.00035105,2]
[383947466,1757189471721,-255.1030362,0.00035105,2]
[383947467,1757189471732,-196.47237949,0.00035105,7]
[383947468,1757189471742,-13291.67777036,0.00035113,2]
[383947469,1757189471752,-157.55267942,0.00035114,2]
[383947470,1757189471764,-4000.0,0.00035118,4]
[383947471,1757189471775,-198.78,0.00035141,120]
[383947472,1757189471786,-462.92,0.00035144,2]
[383947473,1757189471796,-500.0,0.0003516,7]
[383947474,1757189471805,-550.0,0.00035164,5]
[383947475,1757189471815,-450.0,0.00035189,2]
[383947476,1757189471824,-1973.88568139,0.00035192,2]
[383947477,1757189471834,-314380.50253902,0.00035192,5]
[383947478,1757189474327,-405.22954556,0.00028733,2]
[383947479,1757189474337,-855.904545,0.00032877,7]
[383947480,1757189474346,-855.904545,0.00032877,7]
[383947481,1757189474356,-855.904545,0.00032877,7]
[383947482,1757189474365,-855.904545,0.00032877,7]
[383947483,1757189474375,-855.904545,0.00033,7]
[383947484,1757189474384,-855.904553,0.00033,7]
[383947485,1757189474394,-8459.34292644,0.00035192,5]
[383947486,1757189475759,-19976.60824784,0.00035192,5]
[383947487,1757189506989,185.32,0.0002,2]
[383947488,1757189648369,300.0,0.0003012,120]
[383947489,1757189658117,300.0,0.0003013,120]
[383947490,1757189662092,300.0,0.0003013,120]
[383947491,1757189662566,300.0,0.0003013,120]
[383947492,1757189663050,300.0,0.0003013,120]
[383947493,1757189663441,300.0,0.0003013,120]
[383947494,1757189663943,300.0,0.0003013,120]
[383947495,1757189664783,300.0,0.0003013,120]
[383947496,1757189664897,300.0,0.0003013,120]
[383947497,1757189665141,300.0,0.0003013,120]
[383947498,1757189665549,300.0,0.0003013,120]